bitfinex/quotes_SOLUSD_20260202
["timestamp","ask_amount","ask_price","bid_price","bid_amount"]
[1770022177253,4.5,102.16,102.12,9.22808447]
[1770022178155,4.5,102.17,102.14,9.22808447]
[1770022179639,4.5,102.17,102.13,9.22808447]
[1770022181251,4.5,102.16,102.12,9.22808447]
[1770022182345,4.5,102.16,102.11,13.50335532]
[1770022182862,4.5,102.15,102.11,9.22808447]
[1770022183460,4.5,102.15,102.12,9.22808447]
[1770022185944,4.5,102.18,102.14,9.22808447]
[1770022188776,4.5,102.17,102.11,14.06827512]
[1770022189073,4.5,102.17,102.13,9.22808447]
[1770022190069,4.5,102.17,102.14,9.22808447]
[1770022190762,4.5,102.18,102.14,9.22808447]
[1770022191660,4.5,102.18,102.13,9.22808447]
[1770022191878,4.5,102.19,102.13,9.22808447]
[1770022192074,4.5,102.19,102.14,9.22808447]
[1770022192252,13.72808447,102.19,102.14,9.22808447]
[1770022192944,4.5,102.18,102.11,4.55959399]
[1770022193144,4.5,102.15,102.11,9.22808447]
[1770022193364,4.5,102.14,102.09,9.22808447]
[1770022193753,4.5,102.14,102.08,14.35524532]
[1770022193754,4.5,102.13,102.08,9.22808447]
[1770022193960,13.72808447,102.13,102.08,9.22808447]
[1770022194158,4.5,102.13,102.08,9.22808447]
[1770022194867,13.72808447,102.15,102.1,9.22808447]
[1770022195071,4.5,102.14,102.1,9.22808447]
[1770022195365,4.5,102.14,102.08,9.79617263]
[1770022195366,4.5,102.14,102.09,9.22808447]
[1770022195752,4.5,102.13,102.09,9.22808447]
[1770022196968,4.5,102.13,102.08,9.22808447]
[1770022197672,13.72808447,102.13,102.08,9.22808447]
[1770022198166,9.22808447,102.13,102.08,9.22808447]
[1770022198360,4.5,102.12,102.08,9.22808447]
[1770022199072,4.5,102.12,102.06,14.35724725]
[1770022199073,4.5,102.11,102.07,9.22808447]
[1770022199566,4.5,102.11,102.06,13.50335532]
[1770022199772,4.5,102.09,102.04,9.22808447]
[1770022199978,4.5,102.09,102.05,9.22808447]
[1770022200189,4.5,102.16,102.08,9.22808447]
[1770022200474,4.5,102.14,102.09,9.22808447]
[1770022201063,4.5,102.11,102.06,9.22808447]
[1770022201272,4.5,102.1,102.05,9.22808447]
[1770022201454,13.72808447,102.09,102.04,9.22808447]
[1770022201768,9.22808447,102.13,102.04,9.22808447]
[1770022201769,4.5,102.08,102.04,9.22808447]
[1770022202164,4.5,102.11,102.07,9.22808447]
[1770022202668,4.5,102.13,102.09,9.22808447]
[1770022203056,4.5,102.13,102.1,9.22808447]
[1770022203252,4.5,102.15,102.12,9.22808447]
[1770022203467,4.5,102.15,102.11,9.22808447]
[1770022204878,4.5,102.13,102.08,9.22808447]
[1770022205260,4.5,102.12,102.08,9.22808447]
[1770022205467,4.5,102.12,102.07,9.22808447]
[1770022205875,9.22808447,102.13,102.05,9.22808447]
[1770022205876,4.5,102.09,102.05,9.22808447]
[1770022206056,4.5,102.09,102.04,9.22808447]
[1770022206895,4.5,102.09,102.05,9.22808447]
[1770022207285,4.5,102.08,102.04,9.22808447]
[1770022207473,4.5,102.08,102.03,9.22808447]
[1770022207862,4.5,102.08,102.04,9.22808447]
[1770022208068,4.5,102.08,102.02,9.80197285]
[1770022208069,4.5,102.08,102.05,9.22808447]
[1770022208471,4.5,102.09,102.05,9.22808447]
[1770022209175,4.5,102.09,102.04,9.22808447]
[1770022209473,4.5,102.09,102.02,14.0772437]
[1770022209474,4.5,102.07,102.03,9.22808447]
[1770022209685,4.5,102.06,102.01,9.22808447]
[1770022209887,4.5,102.05,102.01,9.22808447]
[1770022210480,4.5,102.06,102.01,9.22808447]
[1770022210672,4.5,102.06,102.02,9.22808447]
[1770022211066,4.5,102.05,102.01,9.22808447]
[1770022211773,4.5,102.1,102.01,9.22808447]
[1770022211966,4.27527085,102.11,102.01,9.22808447]
[1770022211967,4.5,102.07,102.03,9.22808447]
[1770022212169,4.5,102.09,102.04,9.22808447]
[1770022213388,4.5,102.08,102.04,9.22808447]
[1770022213884,4.5,102.08,102.03,9.22808447]
[1770022214060,4.5,102.06,102.0,79.884022]
[1770022214259,4.5,102.06,102.0,89.11210647]
[1770022214260,4.5,102.05,102.0,89.11210647]
[1770022214466,4.5,102.02,102.0,79.884022]
[1770022214664,4.5,102.01,101.98,0.2]
[1770022214965,4.5,102.0,101.98,0.2]
[1770022215265,4.5,102.02,101.98,0.2]
[1770022215474,4.5,102.01,101.98,0.2]
[1770022216381,4.5,102.0,101.98,0.2]
[1770022217169,13.72808447,102.02,101.98,0.2]
[1770022217388,4.5,102.02,101.98,9.42808447]
[1770022218785,4.5,102.04,102.0,9.22808447]
[1770022219486,4.5,102.04,102.01,9.22808447]
[1770022219874,4.5,102.04,102.0,9.22808447]
[1770022220484,4.5,102.04,102.01,9.22808447]
[1770022220678,4.5,102.05,102.01,9.22808447]
[1770022220881,4.5,102.05,102.02,9.22808447]
[1770022221083,4.5,102.07,102.03,9.22808447]
[1770022221686,4.5,102.07,102.03,0.28432314]
[1770022221880,4.5,102.1,102.06,9.22808447]
[1770022222079,4.5,102.13,102.08,9.22808447]
[1770022222288,4.5,102.13,102.1,9.22808447]
[1770022222792,4.5,102.13,102.09,9.22808447]
[1770022223981,4.5,102.13,102.1,9.22808447]
[1770022224388,4.5,102.13,102.09,9.22808447]
[1770022224582,4.5,102.12,102.05,0.14216157]
[1770022224893,4.5,102.12,102.08,9.22808447]
[1770022228792,4.5,102.11,102.06,9.22808447]
[1770022228994,4.5,102.11,102.07,9.22808447]
[1770022229992,4.5,102.11,102.08,9.22808447]
[1770022230383,4.5,102.11,102.08,9.23032905]
[1770022231299,4.5,102.11,102.07,9.23032905]
[1770022232709,4.5,102.11,102.08,9.23032905]
[1770022234489,4.5,102.13,102.09,9.23032905]
[1770022234690,4.5,102.1,102.05,4.27527085]
[1770022234897,4.5,102.1,102.06,9.23032905]
[1770022235099,4.5,102.1,102.07,9.23032905]
[1770022235308,4.5,102.11,102.07,9.23032905]
[1770022235486,4.5,102.11,102.08,9.23032905]
[1770022235688,4.5,102.11,102.07,9.23032905]
[1770022238590,4.5,102.11,102.06,9.23032905]
[1770022238591,13.73032905,102.11,102.06,9.23032905]
[1770022238907,4.5,102.1,102.07,9.23032905]
[1770022239209,4.5,102.12,102.07,9.23032905]
[1770022239411,4.5,102.12,102.08,9.23032905]
[1770022239589,4.5,102.12,102.09,9.23032905]
[1770022240289,4.5,102.14,102.1,9.23032905]
[1770022241714,4.5,102.16,102.12,9.23032905]
[1770022242221,4.5,102.14,102.09,9.23032905]
[1770022242429,4.5,102.13,102.09,9.23032905]
[1770022242591,4.5,102.13,102.06,9.79767151]
[1770022242592,4.5,102.11,102.07,9.23032905]
[1770022242793,4.5,102.1,102.05,9.23032905]
[1770022243122,4.5,102.09,102.04,9.23032905]
[1770022243330,13.73032905,102.09,102.04,9.23032905]
[1770022244004,4.5,102.08,102.03,9.23032905]
[1770022244211,4.5,102.08,102.04,9.23032905]
[1770022244431,9.23032905,102.1,102.04,9.23032905]
[1770022244714,4.5,102.09,102.04,9.23032905]
[1770022245120,13.73032905,102.08,102.03,9.23032905]
[1770022245512,4.5,102.06,102.01,13.5055999]
[1770022245722,4.5,102.05,102.01,9.23032905]
[1770022246501,4.5,102.05,101.99,4.27527085]
[1770022246502,4.5,102.06,102.02,9.23032905]
[1770022247931,4.5,102.07,102.02,9.23032905]
[1770022248303,4.5,102.06,102.02,9.23032905]
[1770022250236,4.5,102.06,102.03,9.23032905]
[1770022250432,4.5,102.08,102.03,9.23032905]
[1770022251603,4.5,102.08,102.01,9.80292776]
[1770022251604,4.5,102.08,102.04,9.23032905]
[1770022259736,4.5,102.08,102.03,9.23032905]
[1770022260230,4.5,102.08,102.04,9.23032905]
[1770022260632,4.5,102.09,102.05,9.23032905]
[1770022260817,4.5,102.09,102.04,9.23032905]
[1770022261011,4.5,102.08,102.03,9.23032905]
[1770022261627,4.5,102.06,102.01,13.5055999]
[1770022262212,4.5,102.04,101.99,9.23032905]
[1770022262627,4.5,102.03,101.98,9.43032905]
[1770022262806,4.5,102.03,101.99,9.23032905]
[1770022263009,4.5,102.04,102.0,9.23032905]
[1770022263221,4.5,102.04,101.99,9.23032905]
[1770022264118,4.5,102.02,101.98,0.2]
[1770022264319,4.5,102.02,101.98,9.43032905]
[1770022264915,4.5,102.02,101.98,0.2]
[1770022265318,4.5,102.05,102.01,9.23032905]
[1770022265624,4.5,102.05,102.03,9.23032905]
[1770022266323,4.5,102.05,102.02,9.23032905]
[1770022266842,4.5,102.05,102.03,9.23032905]
[1770022267144,4.5,102.06,102.02,10.08579777]
[1770022267437,4.5,102.08,102.05,9.23032905]
[1770022267742,4.5,102.09,102.07,9.23032905]
[1770022268122,4.5,102.12,102.08,9.23032905]
[1770022268321,4.5,102.13,102.1,9.23032905]
[1770022268525,9.23032905,102.16,102.11,9.23032905]
[1770022268728,4.5,102.15,102.12,9.23032905]
[1770022272338,4.5,102.15,102.11,9.23032905]
[1770022272538,4.5,102.15,102.1,9.23032905]
[1770022272738,4.5,102.13,102.08,9.23032905]
[1770022272932,4.5,102.12,102.07,9.23032905]
[1770022273145,4.5,102.11,102.08,9.23032905]
[1770022273323,4.5,102.11,102.09,9.23032905]
[1770022275141,4.5,102.11,102.08,9.23032905]
[1770022275642,4.5,102.13,102.1,9.23032905]
[1770022276724,4.5,102.13,102.11,9.23032905]
[1770022277842,4.5,102.13,102.1,9.23032905]
[1770022278229,4.5,102.13,102.08,9.23032905]
[1770022278426,4.5,102.12,102.08,9.23032905]
[1770022278627,4.5,102.12,102.04,4.27527085]
[1770022278843,4.5,102.11,102.06,9.23032905]
[1770022279052,4.5,102.09,102.04,9.23032905]
[1770022279359,4.5,102.09,102.05,9.23032905]
[1770022279522,4.5,102.09,102.04,13.28250905]
[1770022279723,4.5,102.09,102.05,9.23032905]
[1770022280151,4.5,102.09,102.06,9.23032905]
[1770022281159,4.47673809,102.11,102.07,9.23032905]
[1770022281345,4.47673809,102.11,102.09,9.23032905]
[1770022281833,4.47673809,102.11,102.08,9.23032905]
[1770022282034,4.47673809,102.11,102.09,9.23032905]
[1770022283034,4.47673809,102.11,102.06,4.05218]
[1770022283255,4.47673809,102.11,102.07,9.23032905]
[1770022284052,4.47673809,102.11,102.06,13.28250905]
[1770022285051,4.47673809,102.11,102.07,9.23032905]
[1770022285252,4.47673809,102.11,102.06,13.28250905]
[1770022286558,4.47673809,102.11,102.07,9.23032905]
[1770022286861,4.47673809,102.11,102.06,4.05218]
[1770022286862,4.47673809,102.11,102.06,13.28250905]
[1770022287227,64.83490915,102.11,102.06,13.28250905]
[1770022288236,4.455,102.1,102.06,13.28250905]
[1770022288848,4.455,102.09,102.03,4.05218]
[1770022289055,4.455,102.09,102.05,13.28250905]
[1770022289951,4.455,102.09,102.06,9.23032905]
[1770022290156,4.455,102.09,102.05,13.28250905]
[1770022290330,4.455,102.09,102.05,13.28837068]
[1770022290731,4.455,102.09,102.03,4.05218]
[1770022290957,4.455,102.07,102.02,9.23619068]
[1770022291147,9.23619068,102.08,102.0,4.05218]
[1770022291148,13.69119068,102.05,102.0,4.05218]
[1770022291347,0.28432314,102.06,102.0,13.28837068]
[1770022291348,4.455,102.04,102.0,13.28837068]
[1770022293346,4.455,102.05,102.01,13.28837068]
[1770022293546,4.455,102.05,102.0,13.28837068]
[1770022293756,0.04455,102.04,101.99,13.28837068]
[1770022295061,13.97551382,102.06,102.01,4.05218]
[1770022295359,4.455,102.06,102.01,13.28837068]
[1770022296551,4.455,102.05,102.0,13.28837068]
[1770022296856,4.455,102.06,102.02,13.28837068]
[1770022297451,4.455,102.08,102.04,13.28837068]
[1770022298041,4.455,102.08,102.04,9.23619068]
[1770022298357,4.455,102.08,102.03,13.41648813]
[1770022298563,4.455,102.08,102.04,4.18029745]
[1770022299146,64.63344191,102.12,102.01,13.41648813]
[1770022299147,4.13621213,102.06,102.01,13.41648813]
[1770022300056,4.13621213,102.06,102.01,4.18029745]
[1770022300057,4.13621213,102.05,102.01,4.18029745]
[1770022300267,4.13621213,102.05,102.01,13.41648813]
[1770022301066,4.13621213,102.06,102.03,13.41648813]
[1770022303072,13.37240281,102.08,102.03,13.41648813]
[1770022303379,4.13621213,102.08,102.04,13.41648813]
[1770022303676,64.49438319,102.08,102.04,13.41648813]
[1770022306044,64.49438319,102.08,102.05,9.23619068]
[1770022306355,64.49438319,102.08,102.04,13.41648813]
[1770022306753,60.35817106,102.08,102.05,4.18029745]
[1770022307059,60.35817106,102.08,102.05,13.41648813]
[1770022307263,60.35817106,102.08,102.05,4.18029745]
[1770022307768,0.28432314,102.1,102.06,13.41648813]
[1770022308073,4.13013954,102.09,102.05,4.13210343]
[1770022308874,13.36633022,102.09,102.05,4.13210343]
[1770022309177,4.13013954,102.09,102.05,4.13210343]
[1770022311270,4.13013954,102.08,102.03,13.36829411]
[1770022311467,4.13013954,102.08,102.04,4.13210343]
[1770022312472,4.13013954,102.06,102.01,4.13210343]
[1770022312657,4.13013954,102.05,102.01,4.13210343]
[1770022313059,4.13013954,102.04,102.0,4.13210343]
[1770022314176,4.13013954,102.05,102.02,4.13210343]
[1770022314372,64.4883106,102.06,102.02,13.36829411]
[1770022315583,64.4883106,102.06,101.98,14.28068687]
[1770022315584,60.35817106,102.06,102.03,13.36829411]
[1770022315757,4.13013954,102.07,102.03,13.36829411]
[1770022318183,4.13013954,102.07,102.03,9.23619068]
[1770022318363,4.13013954,102.05,102.0,13.36829411]
[1770022319362,4.13013954,102.05,102.01,4.13210343]
[1770022322887,4.13013954,102.05,102.01,13.36829411]
[1770022323785,60.35817106,102.07,102.03,4.13210343]
[1770022323786,73.72450128,102.07,102.03,4.13210343]
[1770022323976,64.4883106,102.06,102.03,4.13210343]
[1770022324778,60.35817106,102.06,102.04,4.13210343]
[1770022324979,4.13013954,102.08,102.04,13.36829411]
[1770022325488,4.13013954,102.08,102.04,4.13210343]
[1770022325786,13.36633022,102.07,102.03,4.13210343]
[1770022326172,64.4883106,102.06,102.03,4.13210343]
[1770022328176,64.4883106,102.06,102.02,13.33890464]
[1770022328588,60.35817106,102.06,102.03,4.10271396]
[1770022328787,4.455,102.07,102.04,13.33890464]
[1770022328973,4.455,102.08,102.04,13.33890464]
[1770022329382,4.455,102.08,102.04,4.10271396]
[1770022331509,4.455,102.06,102.02,4.10271396]
[1770022332173,4.455,102.06,102.02,13.33890464]
[1770022332809,13.69119068,102.07,102.03,4.10271396]
[1770022333099,4.455,102.07,102.03,4.10271396]
[1770022334078,4.455,102.07,102.03,13.33890464]
[1770022334901,4.455,102.07,102.03,4.10271396]
[1770022337093,64.81317106,102.07,102.03,4.10271396]
[1770022338786,4.455,102.06,102.03,4.10271396]
[1770022339000,64.81317106,102.07,102.03,4.10271396]
[1770022339204,64.81317106,102.07,102.03,13.33890464]
[1770022339904,64.81317106,102.07,102.03,4.10271396]
[1770022341503,60.54488263,102.1,102.06,4.10271396]
[1770022341707,4.455,102.09,102.06,4.10271396]
[1770022343106,4.455,102.09,102.05,9.23619068]
[1770022343107,4.455,102.09,102.05,13.33890464]
[1770022344994,4.455,102.12,102.05,4.10271396]
[1770022345304,9.23619068,102.1,102.05,4.10271396]
[1770022345605,4.455,102.09,102.05,4.10271396]
[1770022346193,13.69119068,102.09,102.05,4.10271396]
[1770022346510,4.455,102.09,102.05,4.10271396]
[1770022351304,4.455,102.09,102.04,3.6953157]
[1770022351305,4.455,102.07,102.02,4.10271396]
[1770022351489,8.1503157,102.06,102.02,4.10271396]
[1770022351901,4.455,102.05,102.02,4.10271396]
[1770022352613,4.455,102.06,102.03,4.10271396]
[1770022352803,4.455,102.07,102.04,4.10271396]
[1770022353498,4.455,102.09,102.05,4.10271396]
[1770022353689,4.455,102.09,102.05,13.34780521]
[1770022354907,4.455,102.09,102.06,4.10271396]
[1770022356212,4.455,102.09,102.05,13.34780521]
[1770022356512,4.455,102.08,102.04,4.10271396]
[1770022356816,4.455,102.07,102.04,4.10271396]
[1770022359623,4.16992144,102.08,102.04,4.10271396]
[1770022361628,4.16992144,102.08,102.04,13.34780521]
[1770022363027,4.16992144,102.08,102.04,4.10271396]
[1770022363425,64.5280925,102.08,102.04,4.10271396]
[1770022364304,64.0388165,102.08,102.04,4.10271396]
[1770022366216,69.60326231,102.08,102.04,4.17933207]
[1770022366407,3.97061676,102.07,102.04,4.17933207]
[1770022369126,3.97061676,102.07,102.04,13.42442332]
[1770022369311,64.32878782,102.07,102.04,4.17933207]
[1770022369824,60.35817106,102.07,102.04,4.17933207]
[1770022370132,60.35817106,102.07,102.05,4.07560792]
[1770022370607,60.35817106,102.07,102.05,13.32069917]
[1770022370924,60.35817106,102.07,102.06,4.07560792]
[1770022371499,3.97061676,102.09,102.06,4.07560792]
[1770022371899,3.97061676,102.1,102.07,4.07560792]
[1770022372205,13.21570801,102.11,102.07,4.07560792]
[1770022372521,3.97061676,102.11,102.07,4.07560792]
[1770022372824,3.97061676,102.1,102.07,4.07560792]
[1770022373806,7.66475225,102.11,102.07,4.07560792]
[1770022374007,3.97061676,102.11,102.08,4.07560792]
[1770022374732,64.32878782,102.12,102.08,4.07560792]
[1770022375024,3.69413549,102.13,102.09,4.07560792]
[1770022375025,4.2549399,102.13,102.09,4.07560792]
[1770022375208,3.97061676,102.13,102.09,4.07560792]
[1770022375526,3.97061676,102.13,102.09,7.76974341]
[1770022375824,3.97061676,102.13,102.1,4.07560792]
[1770022379129,64.32878782,102.15,102.11,4.07560792]
[1770022379349,60.35817106,102.15,102.12,4.07560792]
[1770022380021,3.97061676,102.16,102.13,4.07560792]
[1770022380438,3.97061676,102.19,102.15,4.07560792]
[1770022380649,0.1,102.2,102.13,4.27527085]
[1770022380810,0.1,102.2,102.12,0.28432314]
[1770022380811,4.07061676,102.2,102.15,4.07560792]
[1770022381128,4.07061676,102.2,102.14,4.07560792]
[1770022381129,3.97061676,102.17,102.14,4.07560792]
[1770022381330,7.94907539,102.16,102.12,4.07560792]
[1770022381511,7.66475225,102.15,102.11,4.07560792]
[1770022381715,3.97061676,102.13,102.09,4.07560792]
[1770022381929,7.66475225,102.13,102.09,4.07560792]
[1770022382122,3.97061676,102.12,102.08,4.07560792]
[1770022382320,7.66475225,102.12,102.08,4.07560792]
[1770022383026,7.94907539,102.13,102.09,4.07560792]
[1770022383812,3.69413549,102.11,102.07,4.07560792]
[1770022384121,7.66475225,102.12,102.07,4.07560792]
[1770022384326,3.97061676,102.12,102.08,4.07560792]
[1770022384523,7.66475225,102.12,102.08,4.07560792]
[1770022385942,3.97061676,102.12,102.08,4.07560792]
[1770022386424,7.66475225,102.12,102.08,4.07560792]
[1770022387518,4.2549399,102.13,102.09,4.07560792]
[1770022387744,7.94907539,102.13,102.09,4.07560792]
[1770022388342,7.94907539,102.13,102.08,4.4468082]
[1770022388343,3.97061676,102.12,102.08,4.4468082]
[1770022392044,3.97061676,102.12,102.08,8.14094369]
[1770022392821,64.32878782,102.12,102.09,4.4468082]
[1770022393836,64.32878782,102.12,102.08,4.4468082]
[1770022394741,7.66475225,102.11,102.07,4.4468082]
[1770022395125,3.97061676,102.11,102.07,4.4468082]
[1770022396059,64.32878782,102.12,102.08,4.4468082]
[1770022398526,60.35817106,102.11,102.08,4.4468082]
[1770022399030,64.32878782,102.11,102.08,4.4468082]
[1770022399636,60.35817106,102.11,102.08,4.4468082]
[1770022406043,64.32878782,102.11,102.08,4.4468082]
[1770022406240,60.35817106,102.11,102.08,4.4468082]
[1770022406546,60.35817106,102.11,102.09,4.4468082]
[1770022407333,5.36086188,102.16,102.05,13.49314474]
[1770022407334,4.30933651,102.18,102.11,0.489276]
[1770022407551,4.30933651,102.15,102.11,0.489276]
[1770022408449,4.30933651,102.15,102.11,4.18341149]
[1770022410953,4.30933651,102.15,102.12,3.69413549]
[1770022412455,4.30933651,102.15,102.12,3.69014097]
[1770022413437,4.30933651,102.16,102.11,0.489276]
[1770022413639,4.30933651,102.15,102.11,4.17941697]
[1770022415154,3.69014097,102.16,102.09,4.17941697]
[1770022415155,7.99947748,102.14,102.09,4.17941697]
[1770022415340,4.30933651,102.13,102.09,4.17941697]
[1770022416658,4.30933651,102.13,102.1,3.69014097]
[1770022419160,4.30933651,102.13,102.09,0.489276]
[1770022419359,4.30933651,102.13,102.1,3.69014097]
[1770022420062,4.30933651,102.13,102.1,4.17941697]
[1770022421247,4.30933651,102.13,102.09,4.17941697]
[1770022424944,4.32340762,102.12,102.09,4.17941697]
[1770022425564,44.55766212,102.15,102.11,3.69014097]
[1770022425749,4.32340762,102.13,102.1,4.17941697]
[1770022426460,4.32340762,102.13,102.09,4.17941697]
[1770022426961,4.32340762,102.13,102.1,3.69014097]
[1770022427866,76.10106974,102.15,102.12,4.17941697]
[1770022428250,48.88106974,102.15,102.12,4.17941697]
[1770022429068,4.32340762,102.15,102.12,4.17941697]
[1770022429242,4.32340762,102.15,102.12,3.69014097]
[1770022429642,4.32340762,102.15,102.11,0.489276]
[1770022429856,4.32340762,102.15,102.12,3.69014097]
[1770022431158,4.32340762,102.15,102.11,4.17941697]
[1770022431470,4.32340762,102.15,102.12,3.69014097]
[1770022432572,4.32340762,102.15,102.12,4.17941697]
[1770022437386,27.22,102.17,102.14,0.489276]
[1770022437555,4.45321836,102.17,102.15,3.69014097]
[1770022438059,4.45321836,102.17,102.14,4.17941697]
[1770022438255,4.45321836,102.17,102.12,4.17941697]
[1770022438655,3.69014097,102.17,102.12,4.17941697]
[1770022438863,4.45321836,102.16,102.12,4.17941697]
[1770022439057,4.45321836,102.14,102.1,3.69014097]
[1770022439281,4.45321836,102.13,102.09,4.17941697]
[1770022440463,4.45321836,102.13,102.1,3.69014097]
[1770022440759,4.45321836,102.15,102.12,4.17941697]
[1770022441281,4.45321836,102.17,102.12,4.17941697]
[1770022441484,4.45321836,102.17,102.13,3.69014097]
[1770022441660,4.45321836,102.17,102.14,3.69014097]
[1770022441861,4.45321836,102.19,102.15,4.17941697]
[1770022443364,4.45321836,102.19,102.16,3.69014097]
[1770022444259,4.55321836,102.2,102.17,4.17941697]
[1770022444458,0.1,102.2,102.18,3.69014097]
[1770022445384,0.1,102.22,102.2,0.289276]
[1770022445573,0.1,102.22,102.2,3.97941697]
[1770022445772,0.1,102.22,102.2,3.69014097]
[1770022445973,0.1,102.22,102.21,3.69014097]
[1770022446169,4.55321836,102.23,102.21,3.69014097]
[1770022447879,4.55321836,102.23,102.19,3.69014097]
[1770022448081,4.355362,102.21,102.17,3.69014097]
[1770022448585,4.355362,102.21,102.16,3.97941697]
[1770022448788,4.355362,102.2,102.16,3.97941697]
[1770022448980,4.355362,102.2,102.16,3.69014097]
[1770022449572,4.355362,102.2,102.17,3.69014097]
[1770022450292,4.355362,102.2,102.16,3.69014097]
[1770022450873,4.355362,102.21,102.17,3.69014097]
[1770022452488,4.355362,102.21,102.18,3.69014097]
[1770022452789,4.455362,102.23,102.19,3.97941697]
[1770022454678,4.355362,102.21,102.15,0.289276]
[1770022454886,4.355362,102.21,102.16,3.97941697]
[1770022454887,4.355362,102.2,102.16,3.97941697]
[1770022455396,4.355362,102.19,102.15,3.97941697]
[1770022456899,4.355362,102.19,102.14,3.69014097]
[1770022456900,4.355362,102.18,102.14,3.69014097]
[1770022457101,4.355362,102.18,102.13,3.97941697]
[1770022457600,4.355362,102.17,102.13,3.69014097]
[1770022459194,27.2,102.19,102.15,0.289276]
[1770022459195,4.355362,102.19,102.15,0.289276]
[1770022459372,4.355362,102.18,102.13,3.97941697]
[1770022459883,4.355362,102.18,102.12,3.97941697]
[1770022460097,4.355362,102.17,102.12,3.97941697]
[1770022460297,4.355362,102.17,102.13,3.97941697]
[1770022460989,4.355362,102.19,102.14,3.97941697]
[1770022461788,4.355362,102.2,102.16,3.97941697]
[1770022464078,4.355362,102.2,102.16,0.289276]
[1770022466004,4.355362,102.19,102.16,0.289276]
[1770022466203,4.355362,102.19,102.15,9.21752917]
[1770022466408,4.355362,102.17,102.13,0.289276]
[1770022467989,4.355362,102.17,102.13,9.50680517]
[1770022468188,4.355362,102.17,102.13,0.289276]
[1770022468587,4.355362,102.17,102.13,9.50680517]
[1770022470409,4.355362,102.17,102.13,0.289276]
[1770022472596,4.355362,102.14,102.11,9.21752917]
[1770022472992,4.355362,102.16,102.12,9.50680517]
[1770022473321,4.355362,102.16,102.13,9.21752917]
[1770022474006,4.355362,102.16,102.12,0.289276]
[1770022474210,4.355362,102.16,102.12,9.50680517]
[1770022474394,4.355362,102.16,102.12,9.51253175]
[1770022474590,4.355362,102.16,102.12,0.289276]
[1770022474790,4.355362,102.16,102.07,27.2]
[1770022474791,4.355362,102.14,102.1,0.289276]
[1770022474998,4.355362,102.14,102.1,9.51253175]
[1770022476911,4.355362,102.14,102.08,0.289276]
[1770022477095,4.355362,102.14,102.06,37.99210207]
[1770022477096,4.355362,102.14,102.09,9.51253175]
[1770022482121,4.4017286,102.16,102.12,9.51253175]
[1770022482705,4.4017286,102.16,102.12,0.289276]
[1770022482905,4.4017286,102.16,102.13,9.22325575]
[1770022483299,4.4017286,102.16,102.13,9.51253175]
[1770022483501,4.4017286,102.19,102.14,9.51253175]
[1770022483923,4.4017286,102.18,102.14,9.51253175]
[1770022484413,4.4017286,102.18,102.14,3.97724767]
[1770022484814,4.4017286,102.17,102.12,3.68797167]
[1770022485020,4.4017286,102.17,102.12,3.97724767]
[1770022485217,4.4017286,102.17,102.13,0.289276]
[1770022485423,4.4017286,102.17,102.14,3.68797167]
[1770022485723,4.4017286,102.17,102.13,3.97724767]
[1770022486123,4.4017286,102.17,102.12,3.97724767]
[1770022486315,4.4017286,102.16,102.12,0.289276]
[1770022486513,4.4017286,102.15,102.1,3.97724767]
[1770022487021,4.4017286,102.15,102.1,3.68797167]
[1770022487219,4.4017286,102.15,102.1,3.97724767]
[1770022488012,4.4017286,102.15,102.11,3.68797167]
[1770022488211,4.4017286,102.15,102.1,3.97724767]
[1770022488412,4.4017286,102.15,102.11,3.68797167]
[1770022488613,4.4017286,102.15,102.11,3.97724767]
[1770022490830,4.4017286,102.15,102.11,3.68797167]
[1770022491133,4.4017286,102.15,102.1,3.97724767]
[1770022492829,4.41359088,102.14,102.1,3.97724767]
[1770022494018,4.41359088,102.14,102.1,0.289276]
[1770022494218,4.41359088,102.14,102.1,3.97724767]
[1770022495423,4.41359088,102.14,102.11,3.68797167]
[1770022495732,4.41359088,102.14,102.11,0.289276]
[1770022495917,4.41359088,102.14,102.11,3.97724767]
[1770022497817,4.41359088,102.14,102.1,0.289276]
[1770022498014,4.41359088,102.14,102.09,3.97724767]
[1770022498221,4.41359088,102.14,102.09,0.289276]
[1770022498958,4.41359088,102.12,102.07,3.97724767]
[1770022499248,4.41359088,102.12,102.08,3.97724767]